fUSD/lending_fUSD_20240523
["ID","MTS","AMOUNT","RATE_DAILY","PERIOD"]
[327780624,1716475347817,152.73750917,0.00023028,2]
[327780625,1716475347991,350.52417925,0.00022406,2]
[327780626,1716475348100,500.0,0.00022895,5]
[327780627,1716475348259,153.12954135,0.00023038,2]
[327780628,1716475348420,500.0,0.00023169,6]
[327780629,1716475348682,350.52417925,0.00022727,2]
[327780630,1716475348969,500.0,0.00023443,7]
[327780631,1716475349099,153.12954135,0.00023425,2]
[327780632,1716475349391,350.52417925,0.00022729,2]
[327780633,1716475349543,500.0,0.00021986,2]
[327780634,1716475349629,14364.44,0.00021999,2]
[327780635,1716475349810,500.0,0.0002226,3]
[327780636,1716475349922,14364.44,0.00022273,3]
[327780637,1716475350092,507.64889077,0.00022534,4]
[327780638,1716475350219,14364.44,0.00022547,4]
[327780639,1716475350384,500.0,0.00022073,2]
[327780640,1716475350483,154.03762695,0.00022083,2]
[327780641,1716475350539,14364.44,0.00022821,5]
[327780642,1716475350631,500.0,0.00022347,3]
[327780643,1716475350773,153.62237174,0.00022043,2]
[327780644,1716475350832,14364.44,0.00023095,6]
[327780645,1716475350927,154.03762695,0.00022801,2]
[327780646,1716475350978,500.0,0.00022073,2]
[327780647,1716475351035,500.0,0.00022621,4]
[327780648,1716475351102,14364.44,0.00023369,7]
[327780649,1716475351193,500.0,0.00022347,3]
[327780650,1716475351264,500.0,0.00022895,5]
[327780651,1716475351348,3863.03,0.00022074,2]
[327780652,1716475351447,153.62237174,0.00022354,2]
[327780654,1716475351504,500.0,0.00022621,4]
[327780655,1716475351557,158.32309734,0.00023169,6]
[327780656,1716475351617,3863.03,0.00022348,3]
[327780657,1716475351779,500.0,0.00022895,5]
[327780658,1716475351889,3863.03,0.00022622,4]
[327780659,1716475352087,500.0,0.00023169,6]
[327780660,1716475352184,3863.03,0.00022896,5]
[327780661,1716475352358,500.0,0.00023443,7]
[327780662,1716475352411,500.0,0.00022897,2]
[327780663,1716475352461,500.0,0.00022073,2]
[327780664,1716475352515,3863.03,0.0002317,6]
[327780665,1716475352695,500.0,0.00023171,3]
[327780666,1716475352747,500.0,0.00022347,3]
[327780667,1716475352814,3863.03,0.00023444,7]
[327780668,1716475352975,500.0,0.00022621,4]
[327780669,1716475353222,500.0,0.00022895,5]
[327780670,1716475353279,150.87239784,0.00022153,2]
[327780671,1716475353356,500.0,0.00023445,4]
[327780672,1716475353477,150.97582734,0.00022306,2]
[327780673,1716475353534,500.0,0.00023169,6]
[327780674,1716475353797,500.0,0.00023443,7]
[327780675,1716475353982,507.12475685,0.00022073,2]
[327780676,1716475354201,500.0,0.00021986,2]
[327780677,1716475354548,500.0,0.0002226,3]
[327780678,1716475355319,500.0,0.00022534,4]
[327780679,1716475355452,153.40439104,0.00022398,2]
[327780680,1716475355667,500.0,0.00022808,5]
[327780681,1716475355834,183.99184643,0.0002228,2]
[327780682,1716475355916,157.47813498,0.00022719,2]
[327780683,1716475355969,500.0,0.00023082,6]
[327780684,1716475356020,1920.87,0.00022073,2]
[327780685,1716475356252,500.0,0.00023356,7]
[327780686,1716475356307,1920.87,0.00022347,3]
[327780687,1716475356632,183.99184643,0.00022592,2]
[327780688,1716475356872,1920.87,0.00022621,4]
[327780689,1716475357014,155.07639621,0.00023466,2]
[327780690,1716475357154,1920.87,0.00022895,5]
[327780691,1716475357433,1920.87,0.00023169,6]
[327780692,1716475357746,1920.87,0.00023443,7]
[327780693,1716475358054,500.0,0.00022073,2]
[327780694,1716475358247,168.65654003,0.00022073,2]
[327780695,1716475358321,500.0,0.00022347,3]
[327780696,1716475358611,368.21802299,0.00022621,4]
[327780697,1716475358907,183.99184643,0.0002262,2]
[327780699,1716475359358,238.64866965,0.00021986,2]
[327780700,1716475359475,183.99184643,0.00022982,2]
[327780701,1716475360195,183.99184643,0.0002321,2]
[327780702,1716475360994,500.0,0.00022073,2]
[327780703,1716475361323,500.0,0.00022347,3]
[327780704,1716475361423,500.0,0.00021986,2]
[327780705,1716475361678,500.0,0.0002226,3]
[327780706,1716475361872,500.0,0.00022621,4]
[327780707,1716475362908,500.0,0.00022534,4]
[327780708,1716475363476,500.0,0.00022895,5]
[327780709,1716475363540,500.0,0.00022073,2]
[327780710,1716475363631,500.0,0.00022073,2]
[327780711,1716475363689,500.0,0.00022347,3]
[327780712,1716475363754,500.0,0.00023169,6]
[327780713,1716475363822,500.0,0.00022347,3]
[327780714,1716475363886,500.0,0.00023443,7]
[327780715,1716475364117,500.0,0.00022621,4]
[327780716,1716475364179,500.0,0.00022621,4]
[327780717,1716475364389,500.0,0.00022895,5]
[327780718,1716475364457,500.0,0.00022895,5]
[327780719,1716475364722,500.0,0.00023169,6]
[327780720,1716475364845,500.0,0.00023169,6]
[327780721,1716475365010,500.0,0.00023443,7]
[327780722,1716475365117,500.0,0.00023443,7]
[327780723,1716475365173,500.0,0.00022808,5]
[327780724,1716475365510,508.01368996,0.00023082,6]
[327780725,1716475365566,1618.17,0.00022623,2]
[327780726,1716475365859,4366.25,0.00022897,2]
[327780727,1716475366167,4366.25,0.00023171,3]
[327780728,1716475366811,4366.25,0.00023445,4]
[327780729,1716475368127,503.7770805,0.00022073,2]
[327780730,1716475368373,500.0,0.00022897,2]
[327780731,1716475368631,500.0,0.00023171,3]
[327780732,1716475368898,500.0,0.00023445,4]
[327780733,1716475370844,1100.1,0.00022073,2]
[327780734,1716475370901,626.63,0.00021986,2]
[327780735,1716475371008,875.49,0.00022073,2]
[327780736,1716475371132,1100.1,0.00022347,3]
[327780737,1716475371186,626.63,0.0002226,3]
[327780738,1716475371234,615.31,0.00022073,2]
[327780739,1716475371305,875.49,0.00022347,3]
[327780740,1716475371452,626.63,0.00022534,4]
[327780741,1716475371506,1100.1,0.00022621,4]
[327780742,1716475371562,615.31,0.00022347,3]
[327780743,1716475371626,875.49,0.00022621,4]
[327780744,1716475371793,626.63,0.00022808,5]
[327780745,1716475371843,1100.1,0.00022895,5]
[327780746,1716475371895,615.31,0.00022621,4]
[327780747,1716475371965,875.49,0.00022895,5]
[327780748,1716475372021,500.0,0.00022897,2]
[327780749,1716475372071,1100.1,0.00023169,6]
[327780750,1716475372125,615.31,0.00022895,5]
[327780751,1716475372194,875.49,0.00023169,6]
[327780752,1716475372268,500.0,0.00023171,3]
[327780753,1716475372322,1100.1,0.00023443,7]
[327780754,1716475372371,626.63,0.00023082,6]
[327780755,1716475372444,615.31,0.00023169,6]
[327780756,1716475372504,500.0,0.00022073,2]
[327780757,1716475372555,500.0,0.00023445,4]
[327780758,1716475372609,626.63,0.00023356,7]
[327780759,1716475372778,875.49,0.00023443,7]
[327780760,1716475372829,500.0,0.00022347,3]
[327780761,1716475373036,615.31,0.00023443,7]
[327780762,1716475373384,500.0,0.00022621,4]
[327780763,1716475373663,500.0,0.00022895,5]
[327780764,1716475373939,500.0,0.00023169,6]
[327780765,1716475374410,500.0,0.00023443,7]
[327780766,1716475375099,500.0,0.00022074,2]
[327780767,1716475375552,500.0,0.00022348,3]
[327780768,1716475375817,500.0,0.00022622,4]
[327780769,1716475376107,500.0,0.00022896,5]
[327780770,1716475376381,500.0,0.0002317,6]
[327780771,1716475376659,500.0,0.00023444,7]
[327780772,1716475377437,500.0,0.00022073,2]
[327780773,1716475377704,500.0,0.00022347,3]
[327780774,1716475377778,155.23,0.00021918,2]
[327780775,1716475377984,500.0,0.00022621,4]
[327780776,1716475378512,180.14175549,0.00022895,5]
[327780778,1716475380125,500.0,0.00022073,2]
[327780779,1716475380373,500.0,0.00022347,3]
[327780780,1716475380632,500.0,0.00022621,4]
[327780781,1716475380694,505.38907779,0.00022073,2]
[327780782,1716475380997,500.0,0.00022895,5]
[327780783,1716475381269,500.0,0.00023169,6]
[327780784,1716475381893,500.0,0.00023443,7]
[327780785,1716475382465,500.0,0.00021999,2]
[327780786,1716475382749,500.0,0.00022273,3]
[327780787,1716475383388,500.0,0.00022547,4]
[327780788,1716475383447,507.52703152,0.00022073,2]
[327780789,1716475383704,500.0,0.00022821,5]
[327780790,1716475383916,500.0,0.00022073,2]
[327780791,1716475383990,374.45295292,0.00023095,6]
[327780792,1716475384209,500.0,0.00022347,3]
[327780793,1716475384515,500.0,0.00022621,4]
[327780794,1716475384838,500.0,0.00022895,5]
[327780795,1716475385138,500.0,0.00023169,6]
[327780796,1716475385428,500.0,0.00023443,7]
[327780798,1716475385841,500.0,0.00022073,2]
[327780799,1716475386112,500.0,0.00022347,3]
[327780801,1716475386373,500.0,0.00022621,4]
[327780803,1716475386829,500.0,0.00021986,2]
[327780804,1716475386980,500.0,0.00022895,5]
[327780805,1716475387122,500.0,0.0002226,3]
[327780806,1716475387283,500.0,0.00023169,6]
[327780807,1716475387393,432.75209513,0.00022073,2]
[327780808,1716475387554,500.0,0.00023443,7]
[327780809,1716475387760,500.0,0.00022534,4]
[327780811,1716475387990,821.68,0.00022073,2]
[327780812,1716475388295,821.68,0.00022347,3]
[327780813,1716475388418,500.0,0.00022808,5]
[327780815,1716475388573,821.68,0.00022621,4]
[327780816,1716475388686,500.0,0.00023082,6]
[327780817,1716475388943,821.68,0.00022895,5]
[327780818,1716475389004,592.63115162,0.00023356,7]
[327780819,1716475389246,821.68,0.00023169,6]
[327780820,1716475389507,821.68,0.00023443,7]
[327780821,1716475391875,500.0,0.00022073,2]
[327780822,1716475391941,500.0,0.00022073,2]
[327780823,1716475392167,500.0,0.00022347,3]
[327780824,1716475392235,500.0,0.00022347,3]
[327780825,1716475392461,500.0,0.00022621,4]
[327780826,1716475392516,500.0,0.00022621,4]
[327780828,1716475392726,500.0,0.00022895,5]
[327780829,1716475392779,500.0,0.00022895,5]
[327780830,1716475393008,500.0,0.00023169,6]
[327780831,1716475393060,500.0,0.00023169,6]
[327780832,1716475393328,500.0,0.00023443,7]
[327780833,1716475393653,500.0,0.00023443,7]
[327780834,1716475394866,5512.46730855,0.00021,2]
[327780835,1716475396678,750.0,0.00022074,2]
[327780836,1716475396965,750.0,0.00022348,3]
[327780837,1716475397118,414.36589238,0.00021999,2]
[327780838,1716475397278,750.0,0.00022622,4]
[327780839,1716475397578,750.0,0.00022896,5]
[327780840,1716475397888,750.0,0.0002317,6]
[327780841,1716475398300,750.0,0.00023444,7]
[327780842,1716475399088,500.0,0.00022073,2]
[327780843,1716475399272,500.0,0.00021986,2]
[327780844,1716475399327,500.0,0.00022347,3]
[327780845,1716475399554,500.0,0.0002226,3]
[327780846,1716475399617,500.0,0.00022621,4]
[327780847,1716475399832,229.69111283,0.00022534,4]
[327780848,1716475399889,500.0,0.00022895,5]
[327780849,1716475400144,500.0,0.00023169,6]
[327780850,1716475400202,500.0,0.00021986,2]
[327780851,1716475400724,500.0,0.00023443,7]
[327780852,1716475400771,500.0,0.0002226,3]
[327780853,1716475400825,554.32,0.00022073,2]
[327780854,1716475400895,554.32,0.00022347,3]
[327780855,1716475400952,194.36366191,0.00022534,4]
[327780856,1716475401018,554.32,0.00022621,4]
[327780857,1716475401325,554.32,0.00022895,5]
[327780858,1716475401607,554.32,0.00023169,6]
[327780859,1716475401888,554.32,0.00023443,7]
[327780861,1716475405984,510.96579219,0.00022073,2]
[327780862,1716475407611,500.0,0.00021986,2]
[327780863,1716475407674,2973.28,0.00022074,2]
[327780864,1716475407859,500.0,0.0002226,3]
[327780866,1716475408155,449.48035854,0.00022534,4]
[327780867,1716475408286,2973.28,0.00022348,3]
[327780868,1716475408588,2973.28,0.00022622,4]
[327780869,1716475408890,2973.28,0.00022896,5]
[327780870,1716475409170,2973.28,0.0002317,6]
[327780871,1716475409534,2973.28,0.00023444,7]
[327780873,1716475410635,500.0,0.00022073,2]
[327780874,1716475411038,500.0,0.00022347,3]
[327780875,1716475411210,500.0,0.00022621,4]
[327780876,1716475411496,500.0,0.00022895,5]
[327780877,1716475411811,500.0,0.00023169,6]
[327780878,1716475412083,500.0,0.00023443,7]
[327780880,1716475416082,575.98,0.00022073,2]
[327780881,1716475416198,500.0,0.00022073,2]
[327780882,1716475416360,575.98,0.00022347,3]
[327780883,1716475416446,500.0,0.00022347,3]
[327780885,1716475416661,575.98,0.00022621,4]
[327780886,1716475416713,500.0,0.00021986,2]
[327780887,1716475416771,500.0,0.00022621,4]
[327780888,1716475416923,575.98,0.00022895,5]
[327780889,1716475416978,500.0,0.0002226,3]
[327780890,1716475417032,500.0,0.00022895,5]
[327780891,1716475417196,575.98,0.00023169,6]
[327780892,1716475417270,500.0,0.00022534,4]
[327780893,1716475417481,575.98,0.00023443,7]
[327780894,1716475417614,500.0,0.00022074,2]
[327780895,1716475417895,500.0,0.00022808,5]
[327780896,1716475417952,500.0,0.00022348,3]
[327780897,1716475418178,500.0,0.00023082,6]
[327780898,1716475418237,500.0,0.00022622,4]
[327780899,1716475418439,500.0,0.00023356,7]
[327780900,1716475418566,500.0,0.00022896,5]
[327780901,1716475419198,500.0,0.0002317,6]
[327780902,1716475419479,500.0,0.00023444,7]
[327780903,1716475420065,500.0,0.00021986,2]
[327780904,1716475420196,500.0,0.00023169,6]
[327780905,1716475420338,500.0,0.0002226,3]
[327780906,1716475420443,500.0,0.00023443,7]
[327780907,1716475420984,535.64,0.00022073,2]
[327780908,1716475421338,500.0,0.00022534,4]
[327780909,1716475421417,535.64,0.00022347,3]
[327780910,1716475421476,500.0,0.00022808,5]
[327780911,1716475421549,500.0,0.00023082,6]
[327780912,1716475421711,500.0,0.00023356,7]
[327780913,1716475421775,535.64,0.00022621,4]
[327780914,1716475421865,535.64,0.00022895,5]
[327780915,1716475423533,500.0,0.00022897,2]
[327780916,1716475423612,535.64,0.00023169,6]
[327780917,1716475423715,535.64,0.00023443,7]
[327780918,1716475423789,500.0,0.00021999,2]
[327780919,1716475423847,500.0,0.00023171,3]
[327780920,1716475423927,803.52,0.00021986,2]
[327780921,1716475423984,500.0,0.00022273,3]
[327780922,1716475424059,500.0,0.00023445,4]
[327780923,1716475424124,803.52,0.0002226,3]
[327780924,1716475424211,500.0,0.00022547,4]
[327780925,1716475424469,291.51,0.00022821,5]
[327780927,1716475426612,500.0,0.00022073,2]
[327780928,1716475426937,500.0,0.00022347,3]
[327780929,1716475427306,500.0,0.00022621,4]
[327780930,1716475427560,500.0,0.00022895,5]
[327780931,1716475427643,803.52,0.00022534,4]
[327780932,1716475427847,500.0,0.00023169,6]
[327780933,1716475427913,500.0,0.00022073,2]
[327780935,1716475428120,500.0,0.00023443,7]
[327780936,1716475428184,500.0,0.00022347,3]
[327780937,1716475428428,803.52,0.00022808,5]
[327780938,1716475428719,803.52,0.00023082,6]
[327780939,1716475428807,500.0,0.00022621,4]
[327780940,1716475428990,803.52,0.00023356,7]
[327780941,1716475429135,500.0,0.00022895,5]
[327780942,1716475429406,500.0,0.00023169,6]
[327780943,1716475429550,500.0,0.00021999,2]
[327780944,1716475429688,500.0,0.00023443,7]
[327780945,1716475429820,500.0,0.00022273,3]
[327780946,1716475430088,500.0,0.00022547,4]
[327780947,1716475430371,500.0,0.00022821,5]
[327780948,1716475430680,500.0,0.00023095,6]
[327780949,1716475430958,500.0,0.00023369,7]
[327780951,1716475433205,500.0,0.00022897,2]
[327780954,1716475434683,500.0,0.00022073,2]
[327780955,1716475434963,500.0,0.00022347,3]
[327780956,1716475435102,500.0,0.00022625,2]
[327780957,1716475435156,512.09194879,0.00021986,2]
[327780958,1716475435564,500.0,0.00022621,4]
[327780959,1716475435619,360.59625332,0.00022897,2]
[327780960,1716475435856,500.0,0.00022895,5]
[327780961,1716475436131,420.79528907,0.00023169,6]
[327780962,1716475438297,500.0,0.00021999,2]
[327780964,1716475438932,500.0,0.00022273,3]
[327780965,1716475439303,500.0,0.00022547,4]
[327780966,1716475439528,500.0,0.00021986,2]
[327780967,1716475439637,500.0,0.00022821,5]
[327780968,1716475439811,500.0,0.0002226,3]
[327780969,1716475439870,500.0,0.00023095,6]
[327780970,1716475440122,500.0,0.00022534,4]
[327780971,1716475440191,500.0,0.00023369,7]
[327780972,1716475440377,500.0,0.00022808,5]
[327780973,1716475440462,654.79,0.00022897,2]
[327780974,1716475440660,500.0,0.00023082,6]
[327780975,1716475440722,509.89106375,0.00022073,2]
[327780976,1716475440786,654.79,0.00023171,3]
[327780977,1716475440930,500.0,0.00023356,7]
[327780978,1716475441105,654.79,0.00023445,4]
[327780979,1716475442079,2750.0,0.00019,2]
[327780980,1716475442949,2800.0,0.00021,2]
[327780982,1716475444073,2850.0,0.00023,2]
[327780983,1716475444146,500.0,0.00021999,2]
[327780984,1716475444242,500.0,0.00022073,2]
[327780985,1716475444696,500.0,0.00022273,3]
[327780986,1716475445016,500.0,0.00022347,3]
[327780987,1716475445298,1099.45,0.00022073,2]
[327780988,1716475445358,500.0,0.00022547,4]
[327780989,1716475445414,500.0,0.00022621,4]
[327780990,1716475445567,500.0,0.00022895,5]
[327780991,1716475445640,1099.45,0.00022347,3]
[327780992,1716475445700,602.72299587,0.00022821,5]
[327780993,1716475445761,500.0,0.00021986,2]
[327780994,1716475445849,500.0,0.00023169,6]
[327780995,1716475445997,1099.45,0.00022621,4]
[327780996,1716475446056,500.0,0.0002226,3]
[327780997,1716475446125,500.0,0.00023443,7]
[327780998,1716475446194,1099.45,0.00022895,5]
[327780999,1716475446255,500.0,0.00022534,4]
[327781000,1716475446493,1099.45,0.00023169,6]
[327781001,1716475446557,500.0,0.00022808,5]
[327781003,1716475446798,500.0,0.00023082,6]
[327781004,1716475447077,500.0,0.00023356,7]
[327781005,1716475447163,1099.45,0.00023443,7]
[327781006,1716475448983,500.0,0.00022073,2]
[327781007,1716475449254,500.0,0.00022347,3]
[327781008,1716475449550,500.0,0.00022621,4]
[327781009,1716475449832,500.0,0.00022895,5]
[327781010,1716475450087,500.0,0.00021999,2]
[327781011,1716475450165,500.0,0.00023169,6]
[327781012,1716475450297,510.2010209,0.00021986,2]
[327781013,1716475450387,500.0,0.00022273,3]
[327781014,1716475450453,500.0,0.00023443,7]
[327781015,1716475450707,500.0,0.00022547,4]
[327781016,1716475451006,500.0,0.00022821,5]
[327781017,1716475451311,500.0,0.00023095,6]
[327781018,1716475451520,508.33267923,0.00021986,2]
[327781019,1716475451592,500.0,0.00023369,7]
[327781020,1716475451653,680.0,0.00022622,2]
[327781021,1716475451963,500.0,0.00022073,2]
[327781022,1716475452774,500.0,0.00022347,3]
[327781023,1716475452856,500.0,0.00022621,4]
[327781024,1716475452927,500.0,0.00022895,5]
[327781025,1716475453153,500.0,0.00023169,6]
[327781026,1716475453484,500.0,0.00023443,7]
[327781027,1716475454626,500.0,0.00021986,2]
[327781028,1716475454934,500.0,0.0002226,3]
[327781029,1716475455255,500.0,0.00022534,4]
[327781030,1716475455541,500.0,0.00022808,5]
[327781031,1716475455820,500.0,0.00023082,6]
[327781032,1716475456102,231.32580625,0.00023356,7]
[327781033,1716475456416,500.0,0.00022897,2]
[327781034,1716475456692,500.0,0.00023171,3]
[327781035,1716475456743,500.0,0.00021986,2]
[327781036,1716475456992,487.32362867,0.0002226,3]
[327781037,1716475457050,500.0,0.00022073,2]
[327781038,1716475457110,500.0,0.00023445,4]
[327781039,1716475457289,500.0,0.00022347,3]
[327781040,1716475457875,500.0,0.00022621,4]
[327781041,1716475458285,500.0,0.00022895,5]
[327781042,1716475458359,500.0,0.00021999,2]
[327781043,1716475458560,500.0,0.00023169,6]
[327781044,1716475458960,500.0,0.00023443,7]
[327781045,1716475459031,500.0,0.00022273,3]
[327781046,1716475459317,500.0,0.00022547,4]
[327781047,1716475459610,500.0,0.00022821,5]
[327781048,1716475459963,500.0,0.00023095,6]
[327781049,1716475460341,500.0,0.00023369,7]
[327781050,1716475461611,500.0,0.00022073,2]
[327781051,1716475461822,500.0,0.00021986,2]
[327781052,1716475461885,500.0,0.00022347,3]
[327781053,1716475462104,500.0,0.0002226,3]
[327781054,1716475462165,500.0,0.00022621,4]
[327781055,1716475462363,500.0,0.00022534,4]
[327781056,1716475462444,251.38932915,0.00022895,5]
[327781057,1716475462644,500.0,0.00022808,5]
[327781058,1716475463227,500.0,0.00022073,2]
[327781059,1716475463290,572.99905304,0.00023082,6]
[327781060,1716475463346,500.0,0.00022347,3]
[327781061,1716475463478,6772.86623355,0.000219,2]
[327781062,1716475463752,500.0,0.00022621,4]
[327781063,1716475464036,500.0,0.00022895,5]
[327781064,1716475464321,500.0,0.00023169,6]
[327781065,1716475464543,500.0,0.00022073,2]
[327781066,1716475464606,500.0,0.00023443,7]
[327781067,1716475464819,500.0,0.00022347,3]
[327781068,1716475465088,500.0,0.00022621,4]
[327781069,1716475465399,500.0,0.00022073,2]
[327781070,1716475465651,500.0,0.00021999,2]
[327781071,1716475465707,627.64865268,0.00022347,3]
[327781072,1716475465763,500.0,0.00022895,5]
[327781073,1716475465984,500.0,0.00023169,6]
[327781074,1716475466261,500.0,0.00023443,7]
[327781075,1716475466822,155.0,0.00023,2]
[327781076,1716475467008,790.92,0.00022073,2]
[327781077,1716475467287,790.92,0.00022347,3]
[327781078,1716475467579,790.92,0.00022621,4]
[327781079,1716475468203,228.85705094,0.00022897,2]
[327781080,1716475468260,790.92,0.00022895,5]
[327781081,1716475468317,500.0,0.00021999,2]
[327781082,1716475468508,790.92,0.00023169,6]
[327781083,1716475468802,790.92,0.00023443,7]
[327781084,1716475468932,500.0,0.00022273,3]
[327781085,1716475469140,500.0,0.00022073,2]
[327781086,1716475469441,228.92940964,0.00022738,3]
[327781087,1716475469557,500.0,0.00022547,4]
[327781088,1716475469837,500.0,0.00022821,5]
[327781089,1716475470117,500.0,0.00023095,6]
[327781090,1716475470734,500.0,0.00023369,7]
[327781091,1716475471794,500.0,0.00022073,2]
[327781092,1716475472059,500.0,0.00022347,3]
[327781093,1716475472318,500.0,0.00022621,4]
[327781094,1716475472389,500.0,0.00021986,2]
[327781095,1716475472603,500.0,0.00022895,5]
[327781096,1716475472727,2000.0,0.00022644,2]
[327781097,1716475472871,500.0,0.00023169,6]
[327781098,1716475473164,500.0,0.00023443,7]
[327781099,1716475473493,613.02500676,0.0002226,3]
[327781100,1716475473763,648.07,0.00022644,2]
[327781101,1716475473906,500.0,0.00022073,2]
[327781102,1716475474191,516.3497933,0.00022347,3]
[327781103,1716475475171,1163.8,0.00022073,2]
[327781104,1716475475804,1163.8,0.00022347,3]
[327781105,1716475476088,1163.8,0.00022621,4]
[327781106,1716475476237,500.0,0.00022897,2]
[327781107,1716475476353,1163.8,0.00022895,5]
[327781108,1716475476555,500.0,0.00023171,3]
[327781109,1716475476865,500.0,0.00023445,4]
[327781110,1716475476964,1163.8,0.00023169,6]
[327781111,1716475477236,1163.8,0.00023443,7]
[327781112,1716475479494,500.0,0.00022073,2]
[327781113,1716475479773,392.31832345,0.00022347,3]
[327781114,1716475480890,500.0,0.00021986,2]
[327781115,1716475481180,675.6,0.00021999,2]
[327781116,1716475481244,611.68464686,0.0002226,3]
[327781117,1716475481465,675.6,0.00022273,3]
[327781118,1716475481717,675.6,0.00022547,4]
[327781119,1716475483809,675.6,0.00022821,5]
[327781120,1716475483911,675.6,0.00023095,6]
[327781121,1716475483976,231.0,0.00022073,2]
[327781122,1716475484043,500.0,0.00022073,2]
[327781123,1716475484103,505.14511387,0.00021986,2]
[327781124,1716475484170,675.6,0.00023369,7]
[327781125,1716475484227,500.0,0.00022347,3]
[327781126,1716475484304,500.0,0.00022621,4]
[327781127,1716475484386,500.0,0.00022895,5]
[327781128,1716475484630,500.0,0.00023169,6]
[327781129,1716475484984,500.0,0.00023443,7]
[327781130,1716475485827,509.37428848,0.00021986,2]
[327781131,1716475488518,500.0,0.00021986,2]
[327781132,1716475488671,500.0,0.00022073,2]
[327781133,1716475488795,508.38853954,0.0002226,3]
[327781134,1716475489277,500.0,0.00022347,3]
[327781135,1716475489560,500.0,0.00022621,4]
[327781136,1716475490013,500.0,0.00022073,2]
[327781137,1716475490120,500.0,0.00022073,2]
[327781138,1716475490172,500.0,0.00022895,5]
[327781139,1716475490292,511.48008174,0.00022347,3]
[327781140,1716475490437,500.0,0.00023169,6]
[327781141,1716475490493,500.0,0.00022347,3]
[327781142,1716475490708,500.0,0.00022621,4]
[327781143,1716475490760,500.0,0.00023443,7]
[327781144,1716475490998,500.0,0.00022895,5]
[327781145,1716475491199,500.0,0.00021986,2]